Cogmind - Beta 17 @@@ ROGUE MODE // 2026.07.20 @ 01:02:35 Player: Ry645 Result: Destroyed by G-47 Trooper with Particle Gun Performance ------------- Evolutions (1) 500 Regions Visited (4) 800 Robots Destroyed (62) 310 Value Destroyed (1207) 1207 Prototype IDs (7) 140 Alien Tech Used (0) 0 Bonus (0) 0 TOTAL SCORE: 2957 Bonus ------- None Cogmind --------- Core Integrity 0/400 Matter 44/300 Energy 100/100 System Corruption 8% Temperature Cool (9) Movement Core (50) Location -9/Mines Parts ------- > --- POWER (1) -------- (None) > --- PROPULSION (4) --- (None) > --- UTILITY (2) ------ (None) > --- WEAPON (2) ------- (None) > --- INVENTORY (5) ---- Heavy Assault Rifle Autogun Improved Assault Rifle Improved Assault Rifle Improved Assault Rifle Peak State ------------ > --- POWER ------------ Ion Engine > --- PROPULSION ------- Light Treads Light Treads Light Treads Light Treads > --- UTILITY ---------- Bomb Drone Bay > --- WEAPON ----------- Advanced Beam Cannon Improved Assault Rifle > --- INVENTORY -------- Light Treads Large Storage Unit Signal Interpreter Grenade Launcher [Rating: 25] Favorites ----------- Power Ion Engine Engine Ion Engine Propulsion Light Treads Treads Light Treads Utility Signal Interpreter Device Bomb Drone Bay Storage Large Storage Unit Processor Signal Interpreter Hackware Hacking Suite Protection Light Armor Plating Weapon Assault Rifle Energy Gun Improved EM Shotgun Energy Cannon Advanced Beam Cannon Ballistic Gun Assault Rifle Launcher Grenade Launcher Build | -11 -10 -10 -9 -9 ------- Run | Yrd Mat Min Mat Min Slots Evolved 2 | . . . 2 . Power . | . . . . . Propulsion 2 | . . . 2 . Utility . | . . . . . Weapon . | . . . . . Parts Attached 46 | 7 11 1 20 7 Power 6 | 2 1 . 3 . Engine 6 | 2 1 . 3 . Core . | . . . . . Reactor . | . . . . . Propulsion 14 | 2 2 . 6 4 Treads 14 | 2 2 . 6 4 Leg . | . . . . . Wheel . | . . . . . Hover . | . . . . . Flight . | . . . . . Utility 9 | 1 5 1 2 . Device 1 | . . 1 . . Storage 3 | 1 1 . 1 . Processor 2 | . 1 . 1 . Hackware 1 | . 1 . . . Protection 2 | . 2 . . . Artifact . | . . . . . Weapon 17 | 2 3 . 9 3 Energy Gun 1 | . . . 1 . Energy Cannon 1 | . . . 1 . Ballistic Gun 9 | 2 2 . 5 . Ballistic Cannon . | . . . . . Launcher 6 | . 1 . 2 3 Special Weapon . | . . . . . Impact Weapon . | . . . . . Slashing Weapon . | . . . . . Piercing Weapon . | . . . . . Special Melee Weapon . | . . . . . Unidentified Prototypes 4 | . . 1 3 . Parts Lost 11 | . 1 . . 10 Power 1 | . . . . 1 Propulsion 5 | . . . . 5 Utility 2 | . 1 . . 1 Weapon 3 | . . . . 3 Highest Loss Streak 10 | . 1 . . 10 To Critical Strikes . | . . . . . Average Backups 8 | 1 7 5 10 9 Power 1 | . 1 1 . . Propulsion 1 | . . . 3 1 Utility 2 | . 3 4 . . Weapon 2 | . 1 . 5 6 Tool/Special . | . . . . . Unused Backups 11 | . 1 4 5 1 Power . | . . . . . Propulsion . | . . . . . Utility 7 | . 1 4 1 1 Weapon 3 | . . . 3 . Tool/Special 1 | . . . 1 . Average Slot Usage (%) 93 | . 93 87 97 60 Engine 12 | . 14 14 10 5 Treads 34 | . 28 28 43 26 Device 2 | . . 11 1 . Storage 10 | . 14 2 9 7 Processor 5 | . 2 2 9 5 Protection 2 | . 5 . . . Ballistic Gun 16 | . 23 14 11 . Launcher 8 | . 4 14 10 13 Peak Build Rating 25 | 6 10 20 25 16 Average Rating 12 | 4 7 18 15 8 On Entrance 10 | . 6 8 20 16 Avg Prop Armor Cover (%) . | . . . . . Naked Turns 47 | . . . . 47 Heaviest Build 35 | 12 23 20 35 33 Greatest Support 80 | 40 40 40 80 80 Greatest Overweight (x) . | . . . . . Average Overweight (x) . | . . . . . Largest Inventory Capacity 15 | 8 10 10 15 15 Average Capacity 10 | 7 8 5 13 11 Most Carried 15 | 5 10 10 15 14 Average Carried 8 | 1 7 5 10 9 Final Capacity 15 | 8 10 5 15 5 Final Carried 14 | 2 9 5 14 5 Class Distribution -------------------- 81% | Mutant 18% | Scavenger-Mutant Dominant Class ---------------- Mutant | -10/Materials Mutant | -10/Mines Mutant | -9/Materials Mutant | -9/Mines Resources | -11 -10 -10 -9 -9 ----------- Run | Yrd Mat Min Mat Min Matter Collected 1410 | 288 520 26 576 . Remotely . | . . . . . Salvage Created 1602 | 85 869 93 503 52 Parts 117 | 1 60 4 48 4 Haulers Intercepted 6 | . 2 . 4 . Recyclers Shooed 3 | . 3 . . . Parts Field Recycled . | . . . . . Retrieved Matter . | . . . . . Parts Self-Destructed . | . . . . . Prevented . | . . . . . Parts Restored . | . . . . . Kills | -11 -10 -10 -9 -9 ------- Run | Yrd Mat Min Mat Min Combat Hostiles Destroyed 46 | . 15 2 14 15 Guns 13 | . 11 . 2 . AOE 33 | . 4 2 12 15 Classes Destroyed 12 | 1 8 . 2 1 Worker 3 | . 2 . 1 . Builder 6 | . 3 . 3 . Tunneler 1 | . . . 1 . Hauler 6 | . 2 . 4 . Recycler 3 | 1 2 . . . Mechanic 2 | . 1 . 1 . Operator 4 | . 3 . 1 . Watcher 3 | . 3 . . . Swarmer 12 | . 5 . 4 3 Grunt 20 | . 10 2 8 . Sentry 2 | . . . 2 . Assembled 12 | . . . . 12 Best Kill Streak 12 | 1 5 2 5 12 Combat Bots Only 12 | . 3 2 5 12 Max Kills in Single Turn 6 | 1 2 2 4 6 Gunslinging 1 | . 1 . . . Exploded 6 | . 2 2 3 6 Melee . | . . . . . Uniques/NPCs Destroyed . | . . . . . Combat | -11 -10 -10 -9 -9 -------- Run | Yrd Mat Min Mat Min Hostile Shots Fired 238 | . 99 6 51 82 Missed 75 | . 24 2 22 27 Hits 163 | . 75 4 29 55 Melee 4 | . . . . 4 Projectile 159 | . 75 4 29 51 AOE 15 | . . . . 15 Critical Strikes 4 | . 2 . 2 . Damage Taken 3390 | . 996 55 454 1885 Core 566 | . 156 . 20 390 Absorbed by Shields . | . . . . . Regen/Repaired (Parts) 122 | . 39 . 83 . Core Remaining (%) 68 | 100 . 37 . . Volleys Fired 130 | 9 85 2 28 6 Largest 2 | 2 2 2 2 2 Hottest 66 | 40 50 50 63 66 Shots Fired 257 | 18 170 3 54 12 Gun 212 | 18 160 2 32 . Cannon . | . . . . . Launcher 45 | . 10 1 22 12 Special . | . . . . . Kinetic 212 | 18 160 2 32 . Thermal . | . . . . . Explosive 44 | . 10 1 22 11 Electromagnetic 1 | . . . . 1 Robot Hit Streak 12 | 3 12 7 9 4 Robot Miss Streak 9 | 4 9 1 1 1 Penetration Max . | . . . . . Secondary Targets 1 | . 1 . . . Max Gunslinging Chain 1 | . 1 . . . Shots Hit Robots 152 | 10 97 2 37 6 Core Hits 129 | 2 57 3 39 28 Critical Kills 1 | . 1 . . . Critical Parts Destroyed . | . . . . . Critical Strikes 1 | . 1 . . . Destroy 1 | . 1 . . . Melee Attacks . | . . . . . Impact . | . . . . . Slashing . | . . . . . Piercing . | . . . . . Sneak Attacks . | . . . . . Combat Hostiles . | . . . . . Follow-up Attacks . | . . . . . Damage Inflicted 4321 | 82 1475 99 1734 931 Guns 1394 | 82 908 28 376 . Cannons . | . . . . . Explosions 2919 | . 559 71 1358 931 Melee . | . . . . . Ramming 8 | . 8 . . . Kinetic 1394 | 82 908 28 376 . Thermal 153 | . 65 . 88 . Explosive 2766 | . 494 71 1270 931 Electromagnetic . | . . . . . Impact . | . . . . . Slashing . | . . . . . Piercing . | . . . . . Highest Corruption 8 | . . . . 8 Average Corruption 7 | . . . . 7 Corruption Purged . | . . . . . Corruption Blocked . | . . . . . Effects 2 | . . . . 2 Matter Fused 1 | . . . . 1 Energy Discharges 1 | . . . . 1 Overload Shots . | . . . . . Overflow Damage 50 | . 8 . 24 18 Projectiles . | . . . . . Explosions 50 | . 8 . 24 18 Melee . | . . . . . Knockbacks . | . . . . . Impact . | . . . . . Kinetic . | . . . . . Secondary . | . . . . . Self-Inflicted Damage 405 | . 165 . 96 144 Shots 10 | . 3 . 2 5 Rammed 1 | . 1 . . . Targets Rammed 1 | . 1 . . . Kicked . | . . . . . Crushed . | . . . . . Highest Temperature 27 | . 27 11 25 24 Average Temperature 7 | . 6 7 6 15 Received Heat Transfer 657 | . 411 30 141 75 Siege Activations . | . . . . . Martial Activations . | . . . . . Shielding Activations . | . . . . . Robots Disrupted . | . . . . . Combat Hostiles . | . . . . . Robots Corrupted . | . . . . . Combat Hostiles . | . . . . . Parts Fried . | . . . . . Impact Corruptions . | . . . . . Robots Melted . | . . . . . Combat Hostiles . | . . . . . Parts Melted . | . . . . . Heat Transferred 150 | . 50 . 100 . Parts Sabotaged . | . . . . . Parts Stolen . | . . . . . Parts Stripped . | . . . . . Power Chain Reactions . | . . . . . Alert | -11 -10 -10 -9 -9 ------- Run | Yrd Mat Min Mat Min Maximum Alert Level 1 | . . . 1 1 Low Security (%) 83 | 100 100 100 62 92 Level 1 16 | . . . 37 7 Level 2 . | . . . . . Level 3 . | . . . . . Level 4 . | . . . . . Level 5 . | . . . . . High Security . | . . . . . Max Security . | . . . . . Peak Influence 317 | 5 179 94 317 215 Initial 102 | . . 48 . 102 Average 100 | . 70 9 156 151 Influence Increases 1603 | 5 671 63 690 174 Destroy 0b10 Robot/C 680 | . 300 40 280 60 Destroy 0b10 Robot/NC 140 | 5 80 . 55 . Destroy Leader 178 | . 80 10 78 10 Allied During Kill 2 | . . . 2 . Successful Hack 64 | . 23 7 34 . Disable Machine 105 | . 45 . 60 . Destroy Structure 344 | . 83 6 181 74 Partial Spotted 15 | . 15 . . . Lose Combat Pursuer 75 | . 45 . . 30 Influence Decreases 1487 | 5 546 188 426 322 Entered New Map 239 | . . 77 . 162 Time Decay 1132 | 5 536 111 420 60 Lost Part 110 | . 10 . . 100 Lost Ally 6 | . . . 6 . Squads Dispatched 8 | . 4 . 4 . Investigation 4 | . 2 . 2 . Extermination . | . . . . . Reinforcement 4 | . 2 . 2 . Assault . | . . . . . Garrison . | . . . . . Intercept . | . . . . . Searches Triggered . | . . . . . Construction Impeded 1 | . . . 1 . Haulers Reinforced . | . . . . . Active Scanning Responses . | . . . . . Cargo Convoy Interrupts . | . . . . . Stealth | -11 -10 -10 -9 -9 --------- Run | Yrd Mat Min Mat Min Distress Signals 2 | . 1 . 1 . Communications Jammed . | . . . . . Distress Signals . | . . . . . Times Spotted 93 | . 35 2 26 30 Peak Tracking Total 19 | . 5 2 5 19 Tactical Retreats 4 | . 2 . . 2 Traps | -11 -10 -10 -9 -9 ------- Run | Yrd Mat Min Mat Min Traps Triggered 1 | . . . 1 . Indirectly . | . . . . . Trap Hack Attempts . | . . . . . Triggered . | . . . . . Disarmed 1 | . 1 . . . Reprogrammed . | . . . . . Reused . | . . . . . Traps Extracted . | . . . . . Installed . | . . . . . Triggered . | . . . . . Machines | -11 -10 -10 -9 -9 ---------- Run | Yrd Mat Min Mat Min Machines Disabled 7 | . 3 . 4 . Max in Single Turn 2 | . 1 . 2 . Machines Repaired . | . . . . . Machines Dismantled . | . . . . . Machines Sabotaged . | . . . . . Overloaded Fab Kills . | . . . . . Hacking | -11 -10 -10 -9 -9 --------- Run | Yrd Mat Min Mat Min Machines Accessed 20 | . 7 2 11 . Terminals 16 | . 6 1 9 . Fabricators . | . . . . . Repair Stations 3 | . 1 . 2 . Recycling Units . | . . . . . Scanalyzers . | . . . . . Garrison Access . | . . . . . Total Hacks 64 | . 28 5 31 . Successful 29 | . 13 2 14 . Failed 35 | . 15 3 17 . Catastrophic 4 | . 3 . 1 . Database Lockouts . | . . . . . Manual . | . . . . . Terminals 54 | . 26 4 24 . Fabricators . | . . . . . Repair Stations 9 | . 2 . 7 . Recycling Units . | . . . . . Scanalyzers . | . . . . . Garrison Access . | . . . . . Terminal Hacks 22 | . 11 2 9 . Robot Analysis 1 | . 1 . . . Prototype ID Bank 2 | . 1 . 1 . Open Door 1 | . . 1 . . Branch Access Points 1 | . 1 . . . Scanalyzer Index 1 | . . . 1 . Locate Traps 3 | . 1 . 2 . Disarm Traps 1 | . 1 . . . Maintenance Status 2 | . 1 . 1 . Reinforcement Status 1 | . 1 . . . Assault Status 1 | . . 1 . . Hauler Manifests 3 | . 2 . 1 . Registered Components 1 | . . . 1 . Zone Layout 4 | . 2 . 2 . Fabricator Hacks . | . . . . . Repair Station Hacks 7 | . 2 . 5 . Scan Component 4 | . 1 . 3 . Repair 3 | . 1 . 2 . Recycling Unit Hacks . | . . . . . Scanalyzer . | . . . . . Garrison Access Hacks . | . . . . . Unauthorized Hacks . | . . . . . Terminals . | . . . . . Fabricators . | . . . . . Repair Stations . | . . . . . Recycling Units . | . . . . . Scanalyzers . | . . . . . Garrison Access . | . . . . . Data Cores Recovered 1 | . 1 . . . Used . | . . . . . Hacking Detections 19 | . 7 1 11 . Full Trace Events 4 | . 2 . 2 . Feedback Events . | . . . . . Feedback Blocked . | . . . . . Robot Schematics Acquired . | . . . . . Robots Built . | . . . . . Authchips . | . . . . . Time . | . . . . . Total Robot Build Rating . | . . . . . Part Schematics Acquired . | . . . . . Parts Built . | . . . . . Authchips . | . . . . . Time . | . . . . . Total Part Build Rating . | . . . . . Part Studies Acquired . | . . . . . Parts Repaired 3 | . 1 . 2 . Time 109 | . 26 . 83 . Parts Recycled . | . . . . . Recycled Matter . | . . . . . Retrieved Matter . | . . . . . Retrieved Components . | . . . . . Parts Scanalyzed . | . . . . . Part Schematics Acquired . | . . . . . Parts Damaged . | . . . . . Bothacking | -11 -10 -10 -9 -9 ------------ Run | Yrd Mat Min Mat Min Used RIF Installer . | . . . . . Robots Hacked . | . . . . . Non-combat . | . . . . . Combat . | . . . . . Robot Hacks Applied . | . . . . . Relay Couplers Released . | . . . . . Fabnet Peak Effective % . | . . . . . Robots Rewired . | . . . . . Allies Hacked . | . . . . . Hacks Repelled . | . . . . . Allies | -11 -10 -10 -9 -9 -------- Run | Yrd Mat Min Mat Min Total Allies . | . . . . . Largest Group . | . . . . . Highest-Rated Group . | . . . . . Highest-Rated Ally . | . . . . . Total Orders . | . . . . . Ally Attacks 16 | . . 1 15 . Total Damage . | . . . . . Kills . | . . . . . Allies Corrupted . | . . . . . Allies Melted . | . . . . . Intel | -11 -10 -10 -9 -9 ------- Run | Yrd Mat Min Mat Min Active Infowar (turns) . | . . . . . Robot Analysis Total 1 | . 1 . . . Derelict Logs Recovered 1 | . . 1 . . Drone Launches 16 | . . 16 . . Drone Recoveries . | . . . . . Exploration | -11 -10 -10 -9 -9 ------------- Run | Yrd Mat Min Mat Min Turns Passed 7197 | 85 2722 1091 3173 126 Spaces Moved 4064 | 38 1471 654 1801 100 Core 85 | 12 . . . 73 Treads 3979 | 26 1471 654 1801 27 Legs . | . . . . . Wheels . | . . . . . Hover . | . . . . . Flight . | . . . . . Fastest Speed 50 | 50 160 160 160 50 Average Speed 157 | 125 160 160 160 79 Slowest Speed 160 | 160 160 160 160 160 Overloaded Moves . | . . . . . Propulsion Burnouts . | . . . . . Robots Hopped . | . . . . . Potential Cave-ins 7 | . 6 . . 1 Cave-ins Triggered 2 | . . . . 2 Exploration Rate (%) 63 | 5 95 89 91 36 Regions Visited 4 Branch Regions 2 Pre-discovered Areas 1 | . . 1 . . Known Exits Taken 3 | . 1 1 1 . Unknown Exits Taken 1 | 1 . . . . Scrap Searched 3 | . . 3 . . Spaces Dug . | . . . . . Terrain Destroyed 420 | . 105 6 210 99 Melee . | . . . . . Projectile . | . . . . . AOE 420 | . 105 6 210 99 Terrain Rammed . | . . . . . Walls Destroyed . | . . . . . Machines Disabled . | . . . . . Actions | -11 -10 -10 -9 -9 --------- Run | Yrd Mat Min Mat Min Total 4639 | 61 1698 702 2042 136 Wait 250 | . 88 27 122 13 Move 4059 | 37 1470 653 1800 99 Hop . | . . . . . Pick Up 66 | 8 18 7 33 . Fast Attach 6 | . 2 . 4 . Attach 39 | 6 12 1 12 8 Detach 10 | . 7 . 3 . Swap 25 | 1 5 . 17 2 Drop 52 | . 10 12 23 7 Fire 130 | 9 85 2 28 6 Melee . | . . . . . Ram . | . . . . . Kick . | . . . . . Crush 1 | . 1 . . . Escape Stasis 1 | . . . . 1 Rewire . | . . . . . Trap . | . . . . . Miscellaneous . | . . . . . Route ------- -11/Scrapyard -10/Materials (discovered 5 exits: *Mat x3 / *Min / *Sub) -10/Mines -9/Materials (discovered 4 exits: *Mat x3 / *Min) -9/Mines History --------- Turn | Location | Event 5 | -11/Scrapyard | Discovered new exit (range 16) 86 | -11/Scrapyard | Entered Materials 168 | -10/Materials | Discovered new exit (range 15) 315 | -10/Materials | Build established: Mutant 441 | -10/Materials | Identified exit to Mines 478 | -10/Materials | Discovered new exit (range 15) 1361 | -10/Materials | Discovered new exit (range 12) 1993 | -10/Materials | Discovered new exit (range 13) 2110 | -10/Materials | Core integrity fell below 50% 2346 | -10/Materials | Discovered new exit (range 7) 2366 | -10/Materials | Identified exit to Subcaves 2390 | -10/Materials | Identified exit to Materials 2557 | -10/Materials | Repaired Grenade Launcher 2808 | -10/Materials | Entered Mines 2809 | -10/Mines | Learned location of Storage (-7) 2830 | -10/Mines | Met a Derelict bent on vengeance 2931 | -10/Mines | Found the Drone Emporium 2957 | -10/Mines | Found Prototype Device 2965 | -10/Mines | Identified Bomb Drone Bay 3073 | -10/Mines | Found a hidden stash of uninstalled traps 3129 | -10/Mines | Learned Materials security intel 3164 | -10/Mines | Found a damaged Exp. Sensor Array with a note attached 3171 | -10/Mines | Found Prototype Device 3527 | -10/Mines | Discovered exit to Materials (range 6) 3899 | -10/Mines | Entered Materials 3899 | -9/Materials | Accompanied by 15 allies 3899 | -9/Materials | Evolved 2 slots: Propulsion x2 4051 | -9/Materials | Lost 7 allies 4126 | -9/Materials | Discovered new exit (range 18) 4285 | -9/Materials | Build established: Scavenger-Mutant 4375 | -9/Materials | Identified exit to Mines 4529 | -9/Materials | Discovered new exit (range 16) 4555 | -9/Materials | Identified exit to Materials 5507 | -9/Materials | Discovered exit to Materials (range 16) 5581 | -9/Materials | Build established: Mutant 5878 | -9/Materials | Discovered exit to Materials (range 13) 6706 | -9/Materials | Repaired Rocket Launcher 6758 | -9/Materials | Repaired Imp. Assault Rifle 7072 | -9/Materials | Entered Mines 7073 | -9/Mines | Assembled infested the area 7130 | -9/Mines | Crushed by falling debris 7133 | -9/Mines | Crushed by falling debris 7149 | -9/Mines | Core integrity fell below 50% 7153 | -9/Mines | Core integrity fell below 20% 7158 | -9/Mines | Destroyed 12 combat bots 7178 | -9/Mines | Lost 10 parts (1p5n1u3w) 7198 | -9/Mines | Destroyed by G-47 Trooper with Particle Gun Last Messages --------------- and consider deactivating power-draining parts if not. 07146_ System corrupted: Matter fused (-6). 07146_ The unstable cave ceiling collapses. 07146_ U-05 Engineer lays Concrete. 07146_ Lgt. Treads destroyed. 07146_ Shock Bomb Launcher destroyed. 07147_ U-05 Engineer lays Concrete. 07147_ Lgt. Treads destroyed. 07148_ The unstable cave ceiling collapses. 07148_ U-05 Engineer lays Concrete. 07150_ Dropped Lrg. Storage Unit. 07150_ Dropped EMP Blaster. 07150_ U-05 Engineer lays Concrete. 07151_ The unstable cave ceiling collapses. 07151_ Dropped Shock Bomb Launcher. 07151_ U-05 Engineer lays Concrete. 07152_ The unstable cave ceiling collapses. 07178_ System corrupted: Energy discharge (-35). 07178_ K-01 Serf collects debris. Map ----- +----------------------------------------------------+ | | | | | | | | | | | ?????????????????????????????????????????????????? | | ?????????????????????????????????????????????????? | | ?????????????????????????????????????????????????? | | ?????????????????????????????????????????????????? | | ?????????????????????????????????????????????????? | | ?????????????????????????????????????????????????? | | ?????????????????????????????????????????????????? | | ?????????????????????????????????????????????????? | | ?????????????????????????????????????????????????? | | ?????????????????????????????????????????????????? | | ?????????????????????????????????????????????????? | | ?????????????#t??????????????????????????????????? | | ?????????????# ####?????????????????????????????? | | ????????????? ##???????????????????????????? | | ??????????????? ??????????????????????????? | | ???????????????## $ ????????????????????????? | | ??????????????## ????????????????????????? | | ?????????????## ????????????????????????? | | ?????????????# ????????????????????????? | | ?????????????# #######?????????????????? | | ?????????????# @ #?????????????????? | | ??????????????# #?????????????????? | | ??????????????### #### #?????????????????? | | ????????????????# # #??# #?????????????????? | | ????????????????# ?## # #??# #????????????###??? | | ??????????????### ##### #??# #???????????? #### | | ?????????????## ??#gg#??# #?????#####? # | | ???????????### ## #??# #?????# ##" | | ?????????? #??# #?????# "%" | | ?????????? #### #????## " | | ???????????????# #????# #?## | | ???????????????# #### ###### #???## | | ??????????????# #??# ##?????# | | ????????????# ??######### #??????? | | ???????????# ?????????## #??????? | | ???????????? ????????## #??????? | | ???????????? ???????## #??????? | | ???????????? ##?????## ##?####?? | | ????????????? ### ## ##????### ##?## ### | | ????????????? ???###?# $#?????## ##??# # | | ?????????????????????# ??????# ##?## | | ?????????????????????# ??????# ### | | ?????????????????????# ??????## # | | ?????????????????????# ???????## | | ?????????????????????# ?????????### | +----------------------------------------------------+ Best States ------------- Heat Dissipation 28 Energy Generation 14 Energy Capacity 280 Matter Stores 300 Matter Capacity 300 Sight Range 16 Terrain Scan Density 10 Armor Coverage 150 Evasion (%) 50 Recoil Reduction 4 Offensive Hacking 10 Item Schematics ----------------- None Robot Schematics ------------------ None Fabricated ------------ Nothing Repaired ---------- Grenade Launcher | 35% | -10/Materials Rocket Launcher | 67% | -9/Materials Imp. Assault Rifle | 57% | -9/Materials Studied --------- None Alien Tech Used ----------------- None Achievements -------------- Ghost 'Em Let's See Who's Tougher Quick And Dirty Release The Drones! Remodeling Unlikely Earthworm Challenges ------------ None Game ------ Seed TiamatThermicDriver Manual? 0 Play Time 01:07:12 Cumulative 5.0 hours Start 2026.07.19 @ 23:53:11 End 2026.07.20 @ 01:02:35 Sessions 1 Manual Loads 0 Difficulty Rogue Special Mode None Game No. 4 Rogue 4 Adventurer 0 Explorer 0 Win Type - Total 0 Types 0/0/0/0/0/0/0/0/0/0 Lore% 3 Gallery% 5 Achievement% 7 Wizard Run 0 Options --------- Layout 2 ASCII 0 Keyboard 0 Movement Mouse Keybinds 1 Fullscreen 1 Font 24/Terminus Map View 50x44 Zoom Use 0% Tactical HUD 1 Map Filters NONE Filters NONE Steam 1 RUN: da3cedd1-40df-4fff-8443-88de740ae388